fUSD/lending_fUSD_20260507
["ID","MTS","AMOUNT","RATE_DAILY","PERIOD"]
[421753804,1778106425000,-158.26170829,0.00012,2]
[421753808,1778106525000,220.85,7.313e-05,2]
[421753807,1778106525000,220.85,6.98e-05,2]
[421753806,1778106525000,220.85,6.648e-05,2]
[421753805,1778106525000,220.85,6.315e-05,2]
[421753809,1778106526000,220.85,7.645e-05,2]
[421753810,1778106526000,220.85,7.977e-05,2]
[421753812,1778106526000,220.85,8.642e-05,2]
[421753811,1778106526000,220.85,8.31e-05,2]
[421753816,1778106527000,220.85,9.972e-05,2]
[421753815,1778106527000,220.85,9.639e-05,2]
[421753814,1778106527000,220.85,9.307e-05,2]
[421753813,1778106527000,220.85,8.975e-05,2]
[421753819,1778106528000,91.89,0.00010636,2]
[421753818,1778106528000,128.96,0.00010636,2]
[421753817,1778106528000,220.85,0.00010304,2]
[421753820,1778106581000,-220.85,0.00010969,2]
[421753973,1778106750000,-220.85,0.00011301,2]
[421753974,1778106751000,-220.85,0.00011634,2]
[421753975,1778106751000,-220.85,0.00011966,2]
[421753976,1778106752000,-151.0,0.00012,2]
[421753978,1778106752000,-220.85,0.00012,2]
[421753977,1778106752000,-69.85,0.00012,2]
[421754022,1778106753000,-2145.58250595,0.00013745,2]
[421754000,1778106753000,-290.0,0.00013199,2]
[421754009,1778106753000,-2000.0,0.00013625,2]
[421753999,1778106753000,-300.0,0.00013199,2]
[421754001,1778106753000,-250.0,0.000132,2]
[421754007,1778106753000,-200.0,0.000136,4]
[421754002,1778106753000,-208.08566668,0.000132,2]
[421754014,1778106753000,-500.0,0.00013679,2]
[421754005,1778106753000,-163.96,0.00013312,2]
[421754003,1778106753000,-3105.34976825,0.000132,2]
[421754006,1778106753000,-176.27,0.00013479,2]
[421754008,1778106753000,-150.0,0.00013625,2]
[421754012,1778106753000,-500.0,0.00013679,2]
[421754011,1778106753000,-500.0,0.00013679,2]
[421754013,1778106753000,-500.0,0.00013679,2]
[421754015,1778106753000,-365.11109804,0.00013679,2]
[421754010,1778106753000,-500.0,0.00013679,2]
[421754004,1778106753000,-250.0,0.000132,2]
[421753992,1778106753000,-993.22,0.00012827,2]
[421753995,1778106753000,-300.0,0.00013199,2]
[421753980,1778106753000,-151.0,0.00012,2]
[421753979,1778106753000,-50.92605614,0.00012,2]
[421753981,1778106753000,-151.0,0.00012,2]
[421753982,1778106753000,-163.0,0.00012,2]
[421753983,1778106753000,-220.85,0.00012298,2]
[421753984,1778106753000,-250.0,0.00012327,2]
[421753986,1778106753000,-153.04193701,0.00012676,2]
[421753989,1778106753000,-673.9,0.00012739,2]
[421753990,1778106753000,-657.4,0.0001276,2]
[421753996,1778106753000,-300.0,0.00013199,2]
[421753985,1778106753000,-220.85,0.00012631,2]
[421753987,1778106753000,-150.0,0.00012691,2]
[421753997,1778106753000,-1200.0,0.00013199,2]
[421753988,1778106753000,-152.37,0.00012699,2]
[421753991,1778106753000,-200.0,0.00012776,2]
[421753993,1778106753000,-704.43,0.00013081,2]
[421753994,1778106753000,-171.48,0.00013142,2]
[421753998,1778106753000,-300.0,0.00013199,2]
[421754016,1778106753000,-200.0,0.00013699,2]
[421754028,1778106753000,-906.78256907,0.00013746,2]
[421754017,1778106753000,-3992.665,0.000137,2]
[421754043,1778106753000,-151.0,0.00013843,2]
[421754041,1778106753000,-224.11220342,0.00013828,2]
[421754045,1778106753000,-200.97456133,0.00013845,5]
[421754046,1778106753000,-1044.51161838,0.00013845,5]
[421754042,1778106753000,-918.14552018,0.00013828,2]
[421754048,1778106753000,-1083.61273468,0.00013845,5]
[421754054,1778106753000,-500.0,0.00013845,2]
[421754039,1778106753000,-800.0,0.000138,5]
[421754052,1778106753000,-512.67718847,0.00013845,2]
[421754053,1778106753000,-500.0,0.00013845,2]
[421754050,1778106753000,-500.0,0.00013845,2]
[421754049,1778106753000,-1083.61273468,0.00013845,5]
[421754051,1778106753000,-500.0,0.00013845,2]
[421754057,1778106753000,-500.0,0.00013845,2]
[421754056,1778106753000,-500.0,0.00013845,2]
[421754020,1778106753000,-159.61374998,0.00013745,2]
[421754055,1778106753000,-500.0,0.00013845,2]
[421754038,1778106753000,-718.2035,0.00013746,2]
[421754044,1778106753000,-500.0,0.00013845,5]
[421754036,1778106753000,-5000.0,0.00013746,2]
[421754019,1778106753000,-500.0,0.000137,5]
[421754040,1778106753000,-260.0,0.00013808,2]
[421754021,1778106753000,-4161.6239,0.00013745,2]
[421754023,1778106753000,-4247.49169896,0.00013745,2]
[421754024,1778106753000,-18843.49929509,0.00013745,2]
[421754025,1778106753000,-3075.12125895,0.00013746,2]
[421754027,1778106753000,-1668.97568377,0.00013746,2]
[421754026,1778106753000,-1600.33,0.00013746,2]
[421754030,1778106753000,-1804.06328209,0.00013746,2]
[421754018,1778106753000,-336.364,0.000137,2]
[421754035,1778106753000,-4927.4593,0.00013746,2]
[421754034,1778106753000,-254.11528311,0.00013746,2]
[421754029,1778106753000,-1405.13503512,0.00013746,2]
[421754033,1778106753000,-900.10494811,0.00013746,2]
[421754032,1778106753000,-116.81946783,0.00013746,2]
[421754037,1778106753000,-2500.0,0.00013746,2]
[421754047,1778106753000,-200.97456132,0.00013845,5]
[421754031,1778106753000,-943.32450304,0.00013746,2]
[421754089,1778106754000,-511.266808,0.0001422,2]
[421754088,1778106754000,-500.0,0.0001422,2]
[421754080,1778106754000,-2000.0,0.00013928,2]
[421754081,1778106754000,-176.27,0.00013928,2]
[421754079,1778106754000,-4654.0205,0.00013928,2]
[421754082,1778106754000,-514.51073399,0.00013973,2]
[421754085,1778106754000,-606.5595874,0.00014119,5]
[421754086,1778106754000,-160.72150483,0.0001412,2]
[421754084,1778106754000,-166.75,0.00014082,2]
[421754087,1778106754000,-14650.03919445,0.00014121,2]
[421754090,1778106754000,-500.0,0.0001422,2]
[421754093,1778106754000,-500.0,0.0001422,2]
[421754092,1778106754000,-500.0,0.0001422,2]
[421754094,1778106754000,-500.0,0.0001422,2]
[421754077,1778106754000,-1100.0,0.000139,5]
[421754083,1778106754000,-415.13,0.00013986,2]
[421754078,1778106754000,-33123.0953,0.00013928,2]
[421754058,1778106754000,-393.84809094,0.00013845,2]
[421754074,1778106754000,-266.0,0.00013846,2]
[421754102,1778106754000,-420.0,0.00014472,2]
[421754063,1778106754000,-500.0,0.00013845,2]
[421754060,1778106754000,-231.49590126,0.00013845,2]
[421754061,1778106754000,-500.0,0.00013845,2]
[421754065,1778106754000,-300.0,0.00013845,2]
[421754064,1778106754000,-192.99012125,0.00013845,2]
[421754062,1778106754000,-500.0,0.00013845,2]
[421754059,1778106754000,-256.24269441,0.00013845,2]
[421754067,1778106754000,-8166.06234033,0.00013846,2]
[421754066,1778106754000,-193121.3004736,0.00013846,2]
[421754068,1778106754000,-35266.86213916,0.00013846,2]
[421754070,1778106754000,-5090.88593671,0.00013846,2]
[421754071,1778106754000,-284.14433268,0.00013846,2]
[421754069,1778106754000,-1043.35,0.00013846,2]
[421754072,1778106754000,-485.92897,0.00013846,2]
[421754075,1778106754000,-482176.26580679,0.00013846,2]
[421754076,1778106754000,-2272027.1804,0.00013846,2]
[421754073,1778106754000,-26275.76890073,0.00013846,2]
[421754095,1778106754000,-230194.3746098,0.00014221,2]
[421754091,1778106754000,-300.0,0.0001422,2]
[421754100,1778106754000,-420.0,0.00014472,2]
[421754121,1778106754000,-500.0,0.00016438,2]
[421754116,1778106754000,-180.0,0.00015868,2]
[421754125,1778106754000,-2000.0,0.00017032,2]
[421754123,1778106754000,-163.96,0.0001664,2]
[421754118,1778106754000,-1304.0,0.00015971,2]
[421754124,1778106754000,-243.57107582,0.00016986,2]
[421754133,1778106754000,-4999.99,0.00017728,2]
[421754117,1778106754000,-587.0,0.00015868,2]
[421754126,1778106754000,-823.0,0.00017398,2]
[421754130,1778106754000,-1000.0,0.00017727,2]
[421754129,1778106754000,-1000.0,0.00017727,2]
[421754097,1778106754000,-500.0,0.00014273,2]
[421754132,1778106754000,-500.0,0.00017727,2]
[421754131,1778106754000,-416.1062653,0.00017727,2]
[421754134,1778106754000,-3203.48,0.00017728,2]
[421754135,1778106754000,-9999.99,0.00017728,2]
[421754127,1778106754000,-378.0,0.00017398,2]
[421754119,1778106754000,-658.5,0.00016438,2]
[421754128,1778106754000,-1271.03969901,0.00017482,2]
[421754120,1778106754000,-179.33,0.00016438,2]
[421754115,1778106754000,-587.0,0.00015868,2]
[421754098,1778106754000,-235.36,0.0001428,2]
[421754096,1778106754000,-2305.9131015,0.00014221,2]
[421754101,1778106754000,-420.0,0.00014472,2]
[421754103,1778106754000,-420.0,0.00014472,2]
[421754104,1778106754000,-1680.0,0.00014519,2]
[421754105,1778106754000,-150.0,0.00014743,2]
[421754107,1778106754000,-162.2,0.00014823,2]
[421754099,1778106754000,-176.27,0.00014378,2]
[421754109,1778106754000,-176.27,0.00014827,2]
[421754110,1778106754000,-179.33,0.00015068,2]
[421754113,1778106754000,-2000.0,0.00015329,2]
[421754111,1778106754000,-166.4,0.00015268,2]
[421754112,1778106754000,-500.0,0.00015302,2]
[421754108,1778106754000,-166.75,0.00014823,2]
[421754114,1778106754000,-166.75,0.00015564,2]
[421754106,1778106754000,-977.51403986,0.00014821,2]
[421754122,1778106754000,-11403.73233204,0.00016609,2]
[421754181,1778106755000,-295.0,0.0002,2]
[421754182,1778106755000,-192.0,0.0002,2]
[421754173,1778106755000,-500.0,0.00019178,2]
[421754175,1778106755000,-500.0,0.00019178,2]
[421754174,1778106755000,-500.0,0.00019178,2]
[421754166,1778106755000,-500.0,0.00019178,2]
[421754171,1778106755000,-500.0,0.00019178,2]
[421754168,1778106755000,-500.0,0.00019178,2]
[421754167,1778106755000,-500.0,0.00019178,2]
[421754165,1778106755000,-250.0,0.00019121,2]
[421754172,1778106755000,-500.0,0.00019178,2]
[421754176,1778106755000,-500.0,0.00019178,2]
[421754179,1778106755000,-500.0,0.00019668,2]
[421754195,1778106755000,-5000.0,0.00021918,2]
[421754177,1778106755000,-380.41984111,0.00019178,2]
[421754183,1778106755000,-238.0,0.0002,2]
[421754184,1778106755000,-150.0,0.0002,2]
[421754178,1778106755000,-11403.73233204,0.00019471,2]
[421754196,1778106755000,-295.0,0.00022,2]
[421754190,1778106755000,-295.0,0.00021,2]
[421754197,1778106755000,-192.0,0.00022,2]
[421754191,1778106755000,-192.0,0.00021,2]
[421754187,1778106755000,-658.5,0.00020381,2]
[421754193,1778106755000,-778.0,0.00021,2]
[421754188,1778106755000,-2000.0,0.00020438,2]
[421754186,1778106755000,-1000.0,0.0002,7]
[421754164,1778106755000,-1152.0,0.00019076,2]
[421754180,1778106755000,-163.96,0.00019968,2]
[421754163,1778106755000,-778.0,0.00019,2]
[421754237,1778106755000,-151.0,0.00024174,2]
[421754160,1778106755000,-356.84575663,0.000188,2]
[421754185,1778106755000,-778.0,0.0002,2]
[421754136,1778106755000,-150.99,0.00017728,2]
[421754137,1778106755000,-166.4,0.00017788,2]
[421754140,1778106755000,-238.0,0.00018157,2]
[421754139,1778106755000,-500.0,0.00018108,2]
[421754141,1778106755000,-224.11220337,0.00018173,2]
[421754142,1778106755000,-356.84575663,0.000182,2]
[421754143,1778106755000,-289.0,0.00018304,2]
[421754138,1778106755000,-356.84575663,0.00018,2]
[421754144,1778106755000,-704.43,0.00018314,2]
[421754146,1778106755000,-356.84575663,0.000184,2]
[421754145,1778106755000,-89398.23,0.00018356,2]
[421754147,1778106755000,-658.5,0.0001841,2]
[421754161,1778106755000,-192.0,0.00019,2]
[421754149,1778106755000,-300.0,0.00018532,2]
[421754151,1778106755000,-211.933918,0.00018533,2]
[421754152,1778106755000,-211.933918,0.00018533,2]
[421754148,1778106755000,-151.0,0.0001853,2]
[421754155,1778106755000,-166.72,0.00018533,2]
[421754153,1778106755000,-211.933918,0.00018533,2]
[421754154,1778106755000,-3008.48,0.00018533,2]
[421754156,1778106755000,-150.0,0.00018573,2]
[421754157,1778106755000,-356.84575663,0.000186,2]
[421754169,1778106755000,-500.0,0.00019178,2]
[421754159,1778106755000,-2000.0,0.00018735,2]
[421754162,1778106755000,-238.0,0.00019,2]
[421754170,1778106755000,-500.0,0.00019178,2]
[421754158,1778106755000,-157.04146425,0.00018655,2]
[421754150,1778106755000,-211.933918,0.00018533,2]
[421754189,1778106755000,-1613.0,0.00020916,2]
[421754253,1778106755000,-155.335241,0.00024658,2]
[421754192,1778106755000,-238.0,0.00021,2]
[421754226,1778106755000,-521.10848356,0.00023901,2]
[421754230,1778106755000,-1216.32877647,0.00023978,2]
[421754233,1778106755000,-257.39465111,0.00024,2]
[421754235,1778106755000,-1216.32877647,0.00024054,2]
[421754232,1778106755000,-202.0,0.00024,2]
[421754234,1778106755000,-781.54078965,0.00024,2]
[421754231,1778106755000,-295.0,0.00024,2]
[421754257,1778106755000,-180.15,0.00024946,7]
[421754247,1778106755000,-521.10848356,0.00024429,2]
[421754236,1778106755000,-1216.32877647,0.0002409,2]
[421754238,1778106755000,-151.0,0.00024174,2]
[421754239,1778106755000,-151.0,0.00024174,2]
[421754240,1778106755000,-151.0,0.00024174,2]
[421754245,1778106755000,-521.10848356,0.00024352,2]
[421754244,1778106755000,-521.10848356,0.00024331,2]
[421754241,1778106755000,-11099.68,0.00024174,2]
[421754242,1778106755000,-521.10848356,0.00024321,2]
[421754246,1778106755000,-1216.32877647,0.00024387,2]
[421754243,1778106755000,-658.5,0.00024324,2]
[421754248,1778106755000,-1216.32877647,0.00024466,2]
[421754250,1778106755000,-1000.0,0.00024658,2]
[421754251,1778106755000,-151.0,0.00024658,2]
[421754255,1778106755000,-180.15,0.00024658,2]
[421754249,1778106755000,-500.0,0.00024657,2]
[421754254,1778106755000,-254.06,0.00024658,2]
[421754256,1778106755000,-175.81,0.00024658,2]
[421754194,1778106755000,-1271.03969901,0.00021219,2]
[421754225,1778106755000,-1216.32877647,0.00023874,2]
[421754229,1778106755000,-1216.32877647,0.00023932,2]
[421754252,1778106755000,-151.0,0.00024658,2]
[421754228,1778106755000,-521.10848356,0.00023925,2]
[421754227,1778106755000,-1216.32877647,0.00023922,2]
[421754198,1778106755000,-238.0,0.00022,2]
[421754200,1778106755000,-157.04146425,0.00022027,2]
[421754205,1778106755000,-190.816882,0.00022464,2]
[421754201,1778106755000,-11403.73233204,0.00022334,2]
[421754203,1778106755000,-151.0,0.00022464,2]
[421754206,1778106755000,-190.816882,0.00022464,2]
[421754208,1778106755000,-190.816882,0.00022464,2]
[421754204,1778106755000,-151.0,0.00022464,2]
[421754207,1778106755000,-190.816882,0.00022464,2]
[421754199,1778106755000,-778.0,0.00022,2]
[421754209,1778106755000,-224.11220337,0.00022519,2]
[421754210,1778106755000,-1016.0,0.00022908,5]
[421754202,1778106755000,-658.5,0.00022353,2]
[421754212,1778106755000,-295.0,0.00023,2]
[421754222,1778106755000,-521.10848356,0.00023462,2]
[421754221,1778106755000,-521.10848356,0.0002336,2]
[421754213,1778106755000,-192.0,0.00023,2]
[421754216,1778106755000,-521.10848356,0.00023266,2]
[421754219,1778106755000,-1216.32877647,0.00023286,2]
[421754217,1778106755000,-521.10848356,0.00023269,2]
[421754224,1778106755000,-1216.32877647,0.00023734,2]
[421754215,1778106755000,-778.0,0.00023,2]
[421754211,1778106755000,-732.0,0.00022933,2]
[421754220,1778106755000,-1216.32877647,0.00023307,2]
[421754214,1778106755000,-238.0,0.00023,2]
[421754223,1778106755000,-1216.32877647,0.00023556,2]
[421754218,1778106755000,-521.10848356,0.00023281,2]
[421754289,1778106756000,-180.15,0.00026964,30]
[421754295,1778106756000,-199.03596416,0.000273,30]
[421754290,1778106756000,-175.81,0.00026964,30]
[421754291,1778106756000,-14650.03919444,0.00027011,2]
[421754300,1778106756000,-300.0,0.00027396,10]
[421754298,1778106756000,-500.0,0.00027396,2]
[421754288,1778106756000,-163.0,0.00026921,3]
[421754296,1778106756000,-500.0,0.00027396,2]
[421754283,1778106756000,-1000.0,0.00026667,7]
[421754299,1778106756000,-409.06410421,0.00027396,2]
[421754275,1778106756000,-180.15,0.00026099,30]
[421754304,1778106756000,-536.426534,0.00027397,2]
[421754293,1778106756000,-180.15,0.00027253,2]
[421754294,1778106756000,-175.81,0.00027253,2]
[421754297,1778106756000,-500.0,0.00027396,2]
[421754301,1778106756000,-194.45858391,0.00027397,2]
[421754302,1778106756000,-1500.0,0.00027397,2]
[421754307,1778106756000,-536.426534,0.00027397,2]
[421754310,1778106756000,-2223.129167,0.00027397,2]
[421754305,1778106756000,-536.426534,0.00027397,2]
[421754303,1778106756000,-300.0,0.00027397,2]
[421754308,1778106756000,-2223.129167,0.00027397,2]
[421754277,1778106756000,-658.5,0.00026296,2]
[421754309,1778106756000,-2223.129167,0.00027397,2]
[421754292,1778106756000,-502.0,0.00027137,2]
[421754274,1778106756000,-598.0,0.00025916,2]
[421754268,1778106756000,-175.81,0.00025523,2]
[421754282,1778106756000,-200.0,0.000264,2]
[421754306,1778106756000,-536.426534,0.00027397,2]
[421754259,1778106756000,-1271.03969901,0.00024955,2]
[421754258,1778106756000,-175.81,0.00024946,7]
[421754261,1778106756000,-308.0,0.00025,2]
[421754260,1778106756000,-214.60306816,0.00025,3]
[421754264,1778106756000,-180.15,0.00025234,30]
[421754271,1778106756000,-175.81,0.00025811,7]
[421754263,1778106756000,-11403.73233204,0.00025197,2]
[421754265,1778106756000,-175.81,0.00025234,30]
[421754272,1778106756000,-1268.0,0.00025916,2]
[421754262,1778106756000,-614.0,0.000251,2]
[421754278,1778106756000,-180.15,0.00026388,2]
[421754273,1778106756000,-925.0,0.00025916,2]
[421754266,1778106756000,-157.04146425,0.00025399,2]
[421754267,1778106756000,-180.15,0.00025523,2]
[421754269,1778106756000,-11099.68,0.00025786,2]
[421754279,1778106756000,-175.81,0.00026388,2]
[421754280,1778106756000,-1000.0,0.000264,2]
[421754285,1778106756000,-175.81,0.00026676,7]
[421754286,1778106756000,-224.11220337,0.00026864,2]
[421754281,1778106756000,-628.0,0.000264,2]
[421754287,1778106756000,-918.14552018,0.00026864,2]
[421754276,1778106756000,-175.81,0.00026099,30]
[421754284,1778106756000,-180.15,0.00026676,7]
[421754270,1778106756000,-180.15,0.00025811,7]
[421754312,1778106756000,-254.06,0.00027397,2]
[421754314,1778106756000,-903.77898,0.00027397,2]
[421754313,1778106756000,-151.0,0.00027397,2]
[421754346,1778106756000,-51363.3076719,0.00028583,2]
[421754343,1778106756000,-175.81,0.00028118,2]
[421754340,1778106756000,-164.89,0.00028,2]
[421754342,1778106756000,-11403.73233204,0.00028059,2]
[421754344,1778106756000,-658.5,0.00028267,2]
[421754345,1778106756000,-300.0,0.00028582,10]
[421754349,1778106756000,-156.27,0.0002863,2]
[421754351,1778106756000,-156.27,0.00028673,7]
[421754352,1778106756000,-1271.03969901,0.00028691,2]
[421754350,1778106756000,-150.12,0.0002867,7]
[421754359,1778106756000,-150.12,0.0002883,30]
[421754357,1778106756000,-150.12,0.0002879,7]
[421754358,1778106756000,-156.27,0.00028802,7]
[421754354,1778106756000,-156.27,0.00028716,30]
[421754355,1778106756000,-150.12,0.0002875,2]
[421754356,1778106756000,-156.27,0.00028759,2]
[421754360,1778106756000,-502.0,0.00028842,3]
[421754362,1778106756000,-150.12,0.00028871,2]
[421754361,1778106756000,-156.27,0.00028845,30]
[421754363,1778106756000,-156.27,0.00028888,2]
[421754364,1778106756000,-1400.0,0.000289,10]
[421754366,1778106756000,-211.933918,0.000289,7]
[421754365,1778106756000,-81503.25,0.000289,7]
[421754367,1778106756000,-211.933918,0.000289,7]
[421754311,1778106756000,-2223.129167,0.00027397,2]
[421754341,1778106756000,-164.89,0.00028,2]
[421754339,1778106756000,-164.89,0.00028,2]
[421754353,1778106756000,-150.12,0.0002871,30]
[421754336,1778106756000,-164.89,0.00028,2]
[421754338,1778106756000,-164.89,0.00028,2]
[421754319,1778106756000,-1152.862852,0.00027397,2]
[421754317,1778106756000,-903.77898,0.00027397,2]
[421754318,1778106756000,-903.77898,0.00027397,2]
[421754315,1778106756000,-151.0,0.00027397,2]
[421754316,1778106756000,-903.77898,0.00027397,2]
[421754320,1778106756000,-1152.862852,0.00027397,2]
[421754322,1778106756000,-1152.862852,0.00027397,2]
[421754323,1778106756000,-1015.9,0.00027397,2]
[421754324,1778106756000,-1000.0,0.00027397,20]
[421754325,1778106756000,-12797.31,0.00027397,10]
[421754328,1778106756000,-180.15,0.00027541,7]
[421754321,1778106756000,-1152.862852,0.00027397,2]
[421754330,1778106756000,-180.15,0.0002783,30]
[421754347,1778106756000,-846.31373215,0.00028583,2]
[421754331,1778106756000,-175.81,0.0002783,30]
[421754337,1778106756000,-164.89,0.00028,2]
[421754333,1778106756000,-150.0,0.00027931,2]
[421754332,1778106756000,-280.0,0.00027931,2]
[421754335,1778106756000,-502.0,0.0002799,2]
[421754348,1778106756000,-150.12,0.0002863,2]
[421754327,1778106756000,-81503.25,0.000274,7]
[421754326,1778106756000,-10664.43,0.00027397,10]
[421754329,1778106756000,-175.81,0.00027541,7]
[421754334,1778106756000,-221.0,0.00027931,2]
[421754407,1778106757000,-81503.25,0.0003,7]
[421754393,1778106757000,-200.0,0.0002913,7]
[421754396,1778106757000,-156.27,0.00029189,7]
[421754395,1778106757000,-150.12,0.00029152,7]
[421754400,1778106757000,-200.0,0.0002933,7]
[421754399,1778106757000,-156.41,0.00029232,30]
[421754398,1778106757000,-150.24,0.00029232,2]
[421754397,1778106757000,-150.12,0.00029192,30]
[421754402,1778106757000,-150.0,0.00029534,2]
[421754401,1778106757000,-200.0,0.0002953,7]
[421754406,1778106757000,-165.0,0.0003,14]
[421754409,1778106757000,-151.0,0.00030081,2]
[421754419,1778106757000,-650.0,0.00030697,2]
[421754410,1778106757000,-151.0,0.00030081,2]
[421754411,1778106757000,-151.0,0.00030081,2]
[421754414,1778106757000,-658.5,0.00030239,2]
[421754412,1778106757000,-277.82,0.00030081,2]
[421754413,1778106757000,-254.06,0.00030137,2]
[421754415,1778106757000,-502.0,0.00030548,5]
[421754424,1778106757000,-437.0,0.00030697,2]
[421754420,1778106757000,-650.0,0.00030697,2]
[421754423,1778106757000,-650.0,0.00030697,2]
[421754422,1778106757000,-650.0,0.00030697,2]
[421754427,1778106757000,-11403.73233204,0.00030922,2]
[421754404,1778106757000,-502.0,0.00029695,4]
[421754408,1778106757000,-152.11,0.00030081,2]
[421754405,1778106757000,-202.40402599,0.0002973,20]
[421754370,1778106757000,-150.12,0.00028911,7]
[421754394,1778106757000,-156.27,0.00029146,2]
[421754417,1778106757000,-650.0,0.00030697,2]
[421754368,1778106757000,-211.933918,0.000289,7]
[421754369,1778106757000,-211.933918,0.000289,7]
[421754372,1778106757000,-155.91,0.00028919,30]
[421754371,1778106757000,-925.0,0.00028916,2]
[421754373,1778106757000,-156.27,0.00028931,7]
[421754376,1778106757000,-150.12,0.00028991,2]
[421754374,1778106757000,-150.12,0.00028951,30]
[421754375,1778106757000,-156.27,0.00028974,30]
[421754377,1778106757000,-156.27,0.00029017,2]
[421754378,1778106757000,-150.12,0.00029031,7]
[421754379,1778106757000,-156.27,0.0002906,7]
[421754381,1778106757000,-850.0,0.00029097,2]
[421754380,1778106757000,-150.12,0.00029072,30]
[421754383,1778106757000,-850.0,0.00029097,2]
[421754382,1778106757000,-850.0,0.00029097,2]
[421754390,1778106757000,-439.0,0.00029097,2]
[421754391,1778106757000,-156.27,0.00029103,30]
[421754392,1778106757000,-150.12,0.00029112,2]
[421754386,1778106757000,-850.0,0.00029097,2]
[421754388,1778106757000,-850.0,0.00029097,2]
[421754387,1778106757000,-850.0,0.00029097,2]
[421754385,1778106757000,-850.0,0.00029097,2]
[421754389,1778106757000,-850.0,0.00029097,2]
[421754384,1778106757000,-850.0,0.00029097,2]
[421754403,1778106757000,-319.0,0.00029621,2]
[421754425,1778106757000,-393.29,0.00030903,2]
[421754480,1778106757000,-157.4113931,0.00032221,30]
[421754421,1778106757000,-650.0,0.00030697,2]
[421754452,1778106757000,-478.79,0.00031725,2]
[421754464,1778106757000,-925.0,0.00031916,2]
[421754457,1778106757000,-200.0,0.00031737,2]
[421754454,1778106757000,-571.34,0.00031725,2]
[421754459,1778106757000,-200.0,0.00031737,2]
[421754461,1778106757000,-307.0,0.00031737,2]
[421754460,1778106757000,-200.0,0.00031737,2]
[421754462,1778106757000,-1259.0,0.00031788,5]
[421754458,1778106757000,-200.0,0.00031737,2]
[421754466,1778106757000,-1363.74769447,0.00032,120]
[421754465,1778106757000,-187.55103588,0.00032,120]
[421754473,1778106757000,-188.80465501,0.00032,120]
[421754468,1778106757000,-537.79343548,0.00032,120]
[421754467,1778106757000,-201.27762043,0.00032,120]
[421754469,1778106757000,-584.16361869,0.00032,120]
[421754470,1778106757000,-1658.87133082,0.00032,120]
[421754471,1778106757000,-184.68763354,0.00032,120]
[421754472,1778106757000,-213.4623236,0.00032,120]
[421754474,1778106757000,-1177.98,0.000321,30]
[421754476,1778106757000,-295.0,0.00032221,30]
[421754479,1778106757000,-238.0,0.00032221,30]
[421754481,1778106757000,-778.0,0.00032221,30]
[421754478,1778106757000,-153.0,0.00032221,30]
[421754477,1778106757000,-192.0,0.00032221,30]
[421754416,1778106757000,-650.0,0.00030697,2]
[421754456,1778106757000,-200.0,0.00031737,2]
[421754455,1778106757000,-200.0,0.00031737,2]
[421754475,1778106757000,-658.5,0.0003221,5]
[421754453,1778106757000,-569.11,0.00031725,2]
[421754426,1778106757000,-643.46,0.00030903,2]